bitfinex/quotes_BTCUSD_20250614
["timestamp","ask_amount","ask_price","bid_price","bid_amount"]
[1749883898389,2.32909115,105260.0,105250.0,0.04941692]
[1749883898799,2.32909115,105260.0,105250.0,0.0316]
[1749883899223,2.32909115,105260.0,105250.0,0.04941693]
[1749883899632,2.32909115,105260.0,105250.0,0.0316]
[1749883899834,2.32909115,105260.0,105250.0,0.04941693]
[1749883900039,2.32909115,105260.0,105250.0,0.0316]
[1749883900249,2.32909115,105260.0,105250.0,0.04941692]
[1749883900869,2.32909115,105260.0,105250.0,0.0316]
[1749883900993,2.32909115,105260.0,105250.0,0.04941692]
[1749883901929,2.32909115,105260.0,105250.0,0.0316]
[1749883902321,2.32909115,105260.0,105250.0,0.04941692]
[1749883902980,2.60281115,105260.0,105250.0,0.0316]
[1749883903189,2.60281115,105260.0,105250.0,0.04941692]
[1749883903491,2.60281115,105260.0,105250.0,0.0316]
[1749883903814,2.60281115,105260.0,105250.0,0.04941692]
[1749883904018,2.60281115,105260.0,105250.0,0.0316]
[1749883904219,2.60281115,105260.0,105250.0,0.04941692]
[1749883904455,2.60281115,105260.0,105250.0,0.0316]
[1749883905188,2.60281115,105260.0,105250.0,0.04941692]
[1749883905418,2.60281115,105260.0,105250.0,0.05609825]
[1749883905627,2.60281115,105260.0,105250.0,0.0316]
[1749883907820,2.69896037,105260.0,105250.0,0.0316]
[1749883908947,2.69896037,105260.0,105250.0,0.04941988]
[1749883909061,2.69896037,105260.0,105250.0,0.05610229]
[1749883909430,2.69896037,105260.0,105250.0,0.05610211]
[1749883909635,2.69896037,105260.0,105250.0,0.0316]
[1749883909791,2.69896037,105260.0,105250.0,0.03828239]
[1749883909991,2.69896037,105260.0,105250.0,0.0561023]
[1749883910211,2.69896037,105260.0,105250.0,0.0316]
[1749883910418,2.69896037,105260.0,105250.0,0.04941996]
[1749883910620,2.69896037,105260.0,105250.0,0.0316]
[1749883910823,2.60281115,105260.0,105250.0,0.0316]
[1749883911618,2.60281115,105260.0,105250.0,0.04941996]
[1749883911801,2.60281115,105260.0,105250.0,0.0316]
[1749883912027,2.60281115,105260.0,105250.0,0.04941996]
[1749883912433,2.60281115,105260.0,105250.0,0.0316]
[1749883912886,2.60281115,105260.0,105250.0,0.04941996]
[1749883913662,2.60281115,105260.0,105250.0,0.0316]
[1749883913900,2.60281115,105260.0,105250.0,0.04941996]
[1749883914458,2.60281115,105260.0,105250.0,0.0316]
[1749883914661,2.60281115,105260.0,105250.0,0.04941996]
[1749883914864,2.60281115,105260.0,105250.0,0.05610244]
[1749883915294,2.60281115,105260.0,105250.0,0.03828248]
[1749883915428,2.60281115,105260.0,105250.0,0.05610244]
[1749883915634,2.60281115,105260.0,105250.0,0.04941996]
[1749883915844,2.60281115,105260.0,105250.0,0.05610244]
[1749883916651,2.60281115,105260.0,105250.0,0.03828248]
[1749883916899,2.60281115,105260.0,105250.0,0.04941996]
[1749883917060,2.60281115,105260.0,105250.0,0.05610244]
[1749883917954,2.60281115,105260.0,105250.0,0.03828248]
[1749883918355,2.60281115,105260.0,105250.0,0.05610244]
[1749883918559,2.60281115,105260.0,105250.0,0.03828236]
[1749883918760,2.60281115,105260.0,105250.0,0.05610199]
[1749883918955,2.60281115,105260.0,105250.0,0.04941963]
[1749883919208,2.60281115,105260.0,105250.0,0.0316]
[1749883919433,2.60281115,105260.0,105250.0,0.03828236]
[1749883919728,2.60281115,105260.0,105250.0,0.03828243]
[1749883919863,2.60281115,105260.0,105250.0,0.04941983]
[1749883920064,2.60281115,105260.0,105250.0,0.05610226]
[1749883920720,2.60281115,105260.0,105250.0,0.03828243]
[1749883920916,2.60281115,105260.0,105250.0,0.0316]
[1749883921126,2.60281115,105260.0,105250.0,0.05610226]
[1749883921504,2.65357457,105260.0,105250.0,0.03828243]
[1749883921707,2.65357457,105260.0,105250.0,0.0316]
[1749883921916,2.65357457,105260.0,105250.0,0.03828243]
[1749883922112,2.65357457,105260.0,105250.0,0.05610225]
[1749883922520,2.65357457,105260.0,105250.0,0.05610226]
[1749883922730,2.65357457,105260.0,105250.0,0.03828243]
[1749883922926,2.65357457,105260.0,105250.0,0.05610226]
[1749883923346,2.65357457,105260.0,105250.0,0.04941983]
[1749883923559,2.65357457,105260.0,105250.0,0.03828243]
[1749883923764,2.65357457,105260.0,105250.0,0.05610226]
[1749883924166,2.65357457,105260.0,105250.0,0.03828243]
[1749883924416,2.65357457,105260.0,105250.0,0.05610226]
[1749883924820,2.65357457,105260.0,105250.0,0.03828243]
[1749883925026,2.65357457,105260.0,105250.0,0.05610226]
[1749883925225,2.65357457,105260.0,105250.0,0.03828243]
[1749883925389,2.65357457,105260.0,105250.0,0.05610226]
[1749883925586,2.65357457,105260.0,105250.0,0.0316]
[1749883925791,2.65357457,105260.0,105250.0,0.05610226]
[1749883926984,2.65357457,105260.0,105250.0,0.0316]
[1749883927553,2.65357457,105260.0,105250.0,0.05610226]
[1749883927986,2.65357457,105260.0,105250.0,0.0316]
[1749883928194,2.65357457,105260.0,105250.0,0.05610226]
[1749883928389,2.65357457,105260.0,105250.0,0.04941983]
[1749883928594,2.65357457,105260.0,105250.0,0.0316]
[1749883928796,2.65357457,105260.0,105250.0,0.04941983]
[1749883928997,2.65357457,105260.0,105250.0,0.03828243]
[1749883929195,2.60281115,105260.0,105250.0,0.0316]
[1749883929418,2.60281115,105260.0,105250.0,0.05610226]
[1749883929801,2.60281115,105260.0,105250.0,0.0316]
[1749883930005,2.60281115,105260.0,105250.0,0.03828243]
[1749883930143,2.60281115,105260.0,105250.0,0.0316]
[1749883930343,2.60281115,105260.0,105250.0,0.05610226]
[1749883931012,2.60281115,105260.0,105250.0,0.03828243]
[1749883931382,2.60281115,105260.0,105250.0,0.0316]
[1749883931593,2.60281115,105260.0,105250.0,0.05610225]
[1749883932112,2.60281115,105260.0,105250.0,0.05610226]
[1749883932453,2.30055115,105260.0,105250.0,0.03828243]
[1749883932696,2.30055115,105260.0,105250.0,0.05610226]
[1749883932899,2.30055115,105260.0,105250.0,0.03828243]
[1749883933108,2.30055115,105260.0,105250.0,0.04941983]
[1749883933302,2.30055115,105260.0,105250.0,0.05610226]
[1749883933705,2.30055115,105260.0,105250.0,0.03828243]
[1749883933914,2.30055115,105260.0,105250.0,0.05610226]
[1749883934490,2.30055115,105260.0,105250.0,0.04941983]
[1749883934703,2.30055115,105260.0,105250.0,0.05610223]
[1749883934918,2.30055115,105260.0,105250.0,0.05610187]
[1749883935316,2.30055115,105260.0,105250.0,0.0316]
[1749883935534,2.30055115,105260.0,105250.0,0.04941954]
[1749883935858,2.30055115,105260.0,105250.0,0.0316]
[1749883935995,2.30055115,105260.0,105250.0,0.04941954]
[1749883936198,2.30055115,105260.0,105250.0,0.05610187]
[1749883936441,2.30055115,105260.0,105250.0,0.05610197]
[1749883936650,2.30055115,105260.0,105250.0,0.04941982]
[1749883936899,2.30055115,105260.0,105250.0,0.05610225]
[1749883937295,2.30055115,105260.0,105250.0,0.04941982]
[1749883937494,2.30055115,105260.0,105250.0,0.03828243]
[1749883937708,2.31882994,105260.0,105250.0,0.05610322]
[1749883937906,2.31882994,105260.0,105250.0,0.03828269]
[1749883938108,2.31882994,105260.0,105250.0,0.05610322]
[1749883938520,2.31882994,105260.0,105250.0,0.03828269]
[1749883938741,2.31882994,105260.0,105250.0,0.05610322]
[1749883938949,2.31882994,105260.0,105250.0,0.04942056]
[1749883939595,2.31882994,105260.0,105250.0,0.04942057]
[1749883939800,2.31882994,105260.0,105250.0,0.0316]
[1749883940025,2.31882994,105260.0,105250.0,0.04942057]
[1749883940270,2.31882994,105260.0,105250.0,0.0316]
[1749883940485,2.31882994,105260.0,105250.0,0.04942057]
[1749883940912,2.31882994,105260.0,105250.0,0.0316]
[1749883941346,2.31882994,105260.0,105250.0,0.04942059]
[1749883942242,2.74874478,105260.0,105250.0,0.0316]
[1749883942426,0.73952475,105250.0,105240.0,0.0342791]
[1749883942646,1.84886365,105250.0,105240.0,0.04096146]
[1749883942912,1.84886365,105250.0,105240.0,0.0342791]
[1749883943122,1.84886365,105250.0,105240.0,0.04096152]
[1749883943339,1.84886365,105250.0,105240.0,0.0520989]
[1749883943550,1.84886365,105250.0,105240.0,0.05878135]
[1749883943753,1.85486365,105250.0,105240.0,0.05209892]
[1749883943955,1.87486365,105250.0,105240.0,0.05878135]
[1749883944174,1.87486365,105250.0,105240.0,0.0342791]
[1749883944402,1.88086365,105250.0,105240.0,0.04096153]
[1749883944806,1.88086365,105250.0,105240.0,0.04096155]
[1749883945015,1.88086365,105250.0,105240.0,0.05878147]
[1749883945217,1.88086365,105250.0,105240.0,0.05878149]
[1749883945424,1.88086365,105250.0,105240.0,0.0342791]
[1749883945624,1.88086365,105250.0,105240.0,0.05878149]
[1749883946269,1.97710541,105250.0,105240.0,0.04096157]
[1749883946448,1.97710541,105250.0,105240.0,0.04096162]
[1749883946688,1.97710541,105250.0,105240.0,0.05878168]
[1749883946879,1.97710541,105250.0,105240.0,0.02668168]
[1749883947090,1.99164626,105250.0,105240.0,0.01999997]
[1749883947526,2.02018926,105250.0,105240.0,0.0021791]
[1749883947984,1.81068826,105250.0,105240.0,0.0021791]
[1749883948171,1.85208926,105250.0,105240.0,0.0021791]
[1749883950977,1.83668926,105250.0,105240.0,0.0021791]
[1749883953239,1.82018926,105250.0,105240.0,0.0021791]
[1749883959560,1.82018926,105250.0,105240.0,0.0021791]
[1749883963140,0.02,105230.0,105220.0,0.03094762]
[1749883963360,0.93827927,105230.0,105220.0,0.03094762]
[1749883964225,1.37442849,105230.0,105220.0,0.03094762]
[1749883964446,1.37442849,105230.0,105220.0,0.03494762]
[1749883964858,1.40297549,105230.0,105220.0,0.03494762]
[1749883970262,1.70297549,105230.0,105220.0,0.03494762]
[1749883972162,1.70297549,105230.0,105220.0,0.06837073]
[1749883972377,1.70297549,105230.0,105220.0,0.06168611]
[1749883972587,1.70297549,105230.0,105220.0,0.04386045]
[1749883972792,1.70297549,105230.0,105220.0,0.06168611]
[1749883972969,1.70297549,105230.0,105220.0,0.06837075]
[1749883973204,1.70297549,105230.0,105220.0,0.0683708]
[1749883973422,1.70297549,105230.0,105220.0,0.05054511]
[1749883973626,1.70297549,105230.0,105220.0,0.06837082]
[1749883973810,1.70297549,105230.0,105220.0,0.05277333]
[1749883974013,1.70297549,105230.0,105220.0,0.05054511]
[1749883974229,1.70297549,105230.0,105220.0,0.03494762]
[1749883979948,1.60682627,105230.0,105220.0,0.03494762]
[1749883984499,1.60682627,105230.0,105220.0,0.06837082]
[1749883985358,1.60682627,105230.0,105220.0,0.06168618]
[1749883985526,1.60682627,105230.0,105220.0,0.06837082]
[1749883985944,1.60682627,105230.0,105220.0,0.05945797]
[1749883986161,1.60682627,105230.0,105220.0,0.05277333]
[1749883986483,1.63473441,105230.0,105220.0,0.06168618]
[1749883986688,1.63473441,105230.0,105220.0,0.06837082]
[1749883986846,1.63473441,105230.0,105220.0,0.04386047]
[1749883987053,1.36827451,105230.0,105220.0,0.05277333]
[1749883987274,1.55833437,105230.0,105220.0,0.05054511]
[1749883987680,1.55833437,105230.0,105220.0,0.06837082]
[1749883987864,1.56783718,105230.0,105220.0,0.05054511]
[1749883988066,1.56783718,105230.0,105220.0,0.07505546]
[1749883988270,1.56783718,105230.0,105220.0,0.06614261]
[1749883988553,1.56783718,105230.0,105220.0,0.04386047]
[1749883988698,1.56783718,105230.0,105220.0,0.05945797]
[1749883988903,1.56783718,105230.0,105220.0,0.04163226]
[1749883989066,1.56783718,105230.0,105220.0,0.05277333]
[1749883989264,1.99775202,105230.0,105220.0,0.06837082]
[1749883989473,1.99775202,105230.0,105220.0,0.04163226]
[1749883989714,1.99775202,105230.0,105220.0,0.06168618]
[1749883989886,1.99775202,105230.0,105220.0,0.06837082]
[1749883990093,1.99775202,105230.0,105220.0,0.06168618]
[1749883990295,1.99775202,105230.0,105220.0,0.04163226]
[1749883990502,1.99775202,105230.0,105220.0,0.05054511]
[1749883990709,1.99775202,105230.0,105220.0,0.06837082]
[1749883990914,2.09390124,105230.0,105220.0,0.06837082]
[1749883991129,2.09390124,105230.0,105220.0,0.05054511]
[1749883991346,2.09390124,105230.0,105220.0,0.06837092]
[1749883991559,2.09390124,105230.0,105220.0,0.0438605]
[1749883991982,2.09390124,105230.0,105220.0,0.06837092]
[1749883992182,2.09390124,105230.0,105220.0,0.06168626]
[1749883992387,2.09390124,105230.0,105220.0,0.05277339]
[1749883992594,2.09390124,105230.0,105220.0,0.0438605]
[1749883992799,2.09390124,105230.0,105220.0,0.06837093]
[1749883993212,2.09390124,105230.0,105220.0,0.06168627]
[1749883996099,2.09390124,105230.0,105220.0,0.0616858]
[1749883998157,2.09390124,105230.0,105220.0,0.03494762]
[1749884000720,2.09390124,105230.0,105220.0,0.03194762]
[1749884001151,2.09790124,105230.0,105220.0,0.03194762]
[1749884001586,2.09790124,105230.0,105220.0,0.03094762]
[1749884001826,2.10290124,105230.0,105220.0,0.03094762]
[1749884002562,1.06950065,105230.0,105220.0,0.03094762]
[1749884002721,1.59586627,105230.0,105220.0,0.03094762]
[1749884013133,1.86966627,105230.0,105220.0,0.03094762]
[1749884024056,1.59586627,105230.0,105220.0,0.03094762]
[1749884025898,2.02578111,105230.0,105220.0,0.03094762]
[1749884028207,2.12193033,105230.0,105220.0,0.03094762]
[1749884029101,2.39573033,105230.0,105220.0,0.03094762]
[1749884032927,2.39573033,105230.0,105220.0,0.04877245]
[1749884033448,2.39573033,105230.0,105220.0,0.05545711]
[1749884037405,2.39573033,105230.0,105220.0,0.05545736]
[1749884037835,2.29958111,105230.0,105220.0,0.05545736]
[1749884038900,2.29958111,105230.0,105220.0,0.0487727]
[1749884039321,2.29958111,105230.0,105220.0,0.03094762]
[1749884040721,2.29958111,105230.0,105220.0,0.03763202]
[1749884042833,2.29958111,105230.0,105220.0,0.0485695]
[1749884043041,2.39573033,105230.0,105220.0,0.0418851]
[1749884043240,2.39573033,105230.0,105220.0,0.04856976]
[1749884043441,2.39573033,105230.0,105220.0,0.03297276]
[1749884043646,2.39573033,105230.0,105220.0,0.0418859]
[1749884043908,2.41027118,105230.0,105220.0,0.01514762]
[1749884044127,2.41027118,105230.0,105220.0,4.762e-05]
[1749884044337,2.43875019,105230.0,105220.0,4.762e-05]
[1749884044700,2.41027118,105230.0,105220.0,4.762e-05]
[1749884044931,2.43875019,105230.0,105220.0,4.762e-05]
[1749884045894,2.43375019,105230.0,105220.0,4.762e-05]
[1749884046100,2.42975019,105230.0,105220.0,4.762e-05]
[1749884047023,2.43975019,105230.0,105220.0,4.762e-05]
[1749884047425,2.42975019,105230.0,105220.0,4.762e-05]
[1749884047661,2.43275019,105230.0,105220.0,4.762e-05]
[1749884047811,2.43575019,105230.0,105220.0,4.762e-05]
[1749884048014,2.45851742,105230.0,105220.0,4.762e-05]
[1749884050663,2.43003841,105230.0,105220.0,4.762e-05]
[1749884051492,2.30121009,105230.0,105220.0,4.762e-05]
[1749884052354,2.20506087,105230.0,105220.0,4.762e-05]
[1749884054889,2.20506087,105230.0,105220.0,0.01604762]
[1749884056544,2.20506087,105230.0,105220.0,0.03204762]
[1749884063246,2.20506087,105230.0,105220.0,0.03036958]
[1749884076457,2.23353988,105230.0,105220.0,0.03036958]
[1749884076663,2.3296891,105230.0,105220.0,0.03036958]
[1749884084508,2.1370891,105230.0,105220.0,0.03036958]
[1749884084713,2.23349988,105230.0,105220.0,0.03036958]
[1749884090432,2.20502087,105230.0,105220.0,0.03036958]
[1749884091512,1.99384919,105230.0,105220.0,0.03036958]
[1749884096511,2.33384919,105230.0,105220.0,0.03036958]
[1749884096723,2.42999841,105230.0,105220.0,0.03036958]
[1749884108151,2.33384919,105230.0,105220.0,0.03036958]
[1749884115171,2.3623282,105230.0,105220.0,0.03036958]
[1749884121939,0.42910494,105210.0,105200.0,0.07561794]
[1749884122143,1.50973556,105210.0,105200.0,0.08452934]
[1749884122366,1.50973556,105210.0,105200.0,0.12634075]
[1749884122581,1.53828656,105210.0,105200.0,0.13525215]
[1749884122795,1.53828656,105210.0,105200.0,0.11742934]
[1749884122958,1.63443578,105210.0,105200.0,0.13525215]
[1749884123159,1.63443578,105210.0,105200.0,0.12834075]
[1749884123377,1.63443578,105210.0,105200.0,0.11551794]
[1749884123565,1.63443578,105210.0,105200.0,0.06663462]
[1749884123772,1.63443578,105210.0,105200.0,0.05772308]
[1749884123974,1.63443578,105210.0,105200.0,0.04881154]
[1749884124192,1.93443578,105210.0,105200.0,0.06663475]
[1749884124393,1.93443578,105210.0,105200.0,0.06663478]
[1749884124662,2.03067754,105210.0,105200.0,0.04881178]
[1749884124873,2.03067754,105210.0,105200.0,0.06663547]
[1749884125084,2.03067754,105210.0,105200.0,0.04881182]
[1749884125485,2.03067754,105210.0,105200.0,0.0399]
[1749884125710,2.03067754,105210.0,105200.0,0.06663561]
[1749884126158,2.03067754,105210.0,105200.0,0.04881187]
[1749884126599,2.03067754,105210.0,105200.0,0.06663561]
[1749884126803,2.03067754,105210.0,105200.0,0.0399]
[1749884127009,2.03067754,105210.0,105200.0,0.06663561]
[1749884127211,2.03067754,105210.0,105200.0,0.04881187]
[1749884127413,1.93452832,105210.0,105200.0,0.06663561]
[1749884127790,1.93452832,105210.0,105200.0,0.05772374]
[1749884127998,1.93452832,105210.0,105200.0,0.06663561]
[1749884128202,1.93452832,105210.0,105200.0,0.05772374]
[1749884128360,1.93452832,105210.0,105200.0,0.06663561]
[1749884128562,1.93452832,105210.0,105200.0,0.05772374]
[1749884128787,1.93452832,105210.0,105200.0,0.06663561]
[1749884129396,1.97368832,105210.0,105200.0,0.05772374]
[1749884129660,1.97368832,105210.0,105200.0,0.06663561]
[1749884130281,1.97368832,105210.0,105200.0,0.06661636]
[1749884130814,1.97368832,105210.0,105200.0,0.04880545]
[1749884131446,1.78116832,105210.0,105200.0,0.05771091]
[1749884131661,0.96049864,105210.0,105200.0,0.07238745]
[1749884131885,1.87744656,105210.0,105200.0,0.07238733]
[1749884132105,1.87744656,105210.0,105200.0,0.0399]
[1749884132325,1.87744656,105210.0,105200.0,0.06661627]
[1749884133439,1.87744656,105210.0,105200.0,0.05771085]
[1749884133661,1.87744656,105210.0,105200.0,0.04880542]
[1749884133865,1.87744656,105210.0,105200.0,0.05771085]
[1749884134074,2.21744656,105210.0,105200.0,0.06661422]
[1749884134280,2.21744656,105210.0,105200.0,0.05770948]
[1749884134487,2.21744656,105210.0,105200.0,0.26623398]
[1749884134488,1.16509688,105210.0,105200.0,0.26623398]
[1749884134713,1.19475254,105210.0,105200.0,0.06661407]
[1749884134916,1.62466738,105210.0,105200.0,0.06661407]
[1749884135306,2.05458222,105210.0,105200.0,0.06661407]
[1749884135501,2.05458222,105210.0,105200.0,0.04880474]
[1749884135687,2.05458222,105210.0,105200.0,0.04880414]
[1749884135888,2.05458222,105210.0,105200.0,0.0399]
[1749884136106,2.05458222,105210.0,105200.0,0.06661267]
[1749884136511,2.20794222,105210.0,105200.0,0.06661267]
[1749884137100,2.20794222,105210.0,105200.0,0.0399]
[1749884137412,2.20794222,105210.0,105200.0,0.06661273]
[1749884137612,2.20794222,105210.0,105200.0,0.07329091]
[1749884137837,2.20794222,105210.0,105200.0,0.0732909]
[1749884138039,2.20794222,105210.0,105200.0,0.07329525]
[1749884138354,2.20794222,105210.0,105200.0,0.07329691]
[1749884138884,2.20794222,105210.0,105200.0,0.07329914]
[1749884139021,2.20794222,105210.0,105200.0,0.06439278]
[1749884139219,2.20794222,105210.0,105200.0,0.07329924]
[1749884139865,2.20794222,105210.0,105200.0,0.06439278]
[1749884140060,2.20794222,105210.0,105200.0,0.07329924]
[1749884140267,2.20794222,105210.0,105200.0,0.07329923]
[1749884140474,2.20794222,105210.0,105200.0,0.06439277]
[1749884140703,2.20794222,105210.0,105200.0,0.07329923]
[1749884140898,2.20794222,105210.0,105200.0,0.04880646]
[1749884141110,2.20794222,105210.0,105200.0,0.06439277]
[1749884141507,2.20794222,105210.0,105200.0,0.06661924]
[1749884141713,2.20794222,105210.0,105200.0,0.06439253]
[1749884141921,2.20794222,105210.0,105200.0,0.0732989]
[1749884142109,2.20794222,105210.0,105200.0,0.07329886]
[1749884142334,2.20794222,105210.0,105200.0,0.04880636]
[1749884142600,2.20794222,105210.0,105200.0,0.06661909]
[1749884142814,2.20794222,105210.0,105200.0,0.0399]
[1749884143018,2.20794222,105210.0,105200.0,0.05771273]
[1749884143201,2.20794222,105210.0,105200.0,0.07329886]
[1749884143669,2.20794222,105210.0,105200.0,0.0488064]
[1749884143885,2.20794222,105210.0,105200.0,0.07329902]
[1749884144118,2.20794222,105210.0,105200.0,0.06661924]
[1749884144351,2.20794222,105210.0,105200.0,0.07329905]
[1749884144569,2.20794222,105210.0,105200.0,0.05548622]
[1749884144835,2.20794222,105210.0,105200.0,0.06661924]
[1749884145047,2.20794222,105210.0,105200.0,0.07329905]
[1749884145257,2.20794222,105210.0,105200.0,0.04880641]
[1749884145475,2.20794222,105210.0,105200.0,0.05548622]
[1749884145698,2.20794222,105210.0,105200.0,0.07329905]
[1749884145916,2.20794222,105210.0,105200.0,0.07329756]
[1749884146128,2.20794222,105210.0,105200.0,0.04657917]
[1749884146542,2.20794222,105210.0,105200.0,0.04880555]
[1749884146752,2.20794222,105210.0,105200.0,0.07329582]
[1749884146983,2.20794222,105210.0,105200.0,0.05548471]
[1749884147210,2.20794222,105210.0,105200.0,0.0399]
[1749884147416,2.20794222,105210.0,105200.0,0.07329581]
[1749884147628,2.20794222,105210.0,105200.0,0.10105186]
[1749884147836,2.20794222,105210.0,105200.0,0.09214992]
[1749884148043,2.20794222,105210.0,105200.0,0.10105678]
[1749884148251,2.20794222,105210.0,105200.0,0.08324305]
[1749884148462,2.20794222,105210.0,105200.0,0.055487]
[1749884148738,2.20794222,105210.0,105200.0,0.07330073]
[1749884148954,2.20794222,105210.0,105200.0,0.04880686]
[1749884149157,2.20794222,105210.0,105200.0,0.07330094]
[1749884149546,2.20794222,105210.0,105200.0,0.07330093]
[1749884149781,2.20794222,105210.0,105200.0,0.07330103]
[1749884150014,2.20794222,105210.0,105200.0,0.06439412]
[1749884150226,2.20794222,105210.0,105200.0,0.07330107]
[1749884150640,2.20794222,105210.0,105200.0,0.07330094]
[1749884150888,2.20794222,105210.0,105200.0,0.05548713]
[1749884151097,2.20794222,105210.0,105200.0,0.06439389]
[1749884151303,2.20794222,105210.0,105200.0,0.05548704]
[1749884151512,2.20794222,105210.0,105200.0,0.07330082]
[1749884151929,2.20794222,105210.0,105200.0,0.05771378]
[1749884152162,2.20794222,105210.0,105200.0,0.07330086]
[1749884152391,2.20794222,105210.0,105200.0,0.07330087]
[1749884152612,2.20794222,105210.0,105200.0,0.09358871]
[1749884152819,2.20794222,105210.0,105200.0,0.10249544]
[1749884153030,2.20794222,105210.0,105200.0,0.0733005]
[1749884153657,2.20794222,105210.0,105200.0,0.0666204]
[1749884153870,2.20794222,105210.0,105200.0,0.0733005]
[1749884154294,2.20794222,105210.0,105200.0,0.0577136]
[1749884154506,2.20794222,105210.0,105200.0,0.0733005]
[1749884154747,2.20794222,105210.0,105200.0,0.05548719]
[1749884154965,2.20794222,105210.0,105200.0,0.0399]
[1749884155195,2.20794222,105210.0,105200.0,0.04658018]
[1749884155399,2.20794222,105210.0,105200.0,0.05548704]
[1749884155605,2.20794222,105210.0,105200.0,0.07330087]
[1749884155817,2.20794222,105210.0,105200.0,0.07330091]
[1749884156020,2.20794222,105210.0,105200.0,0.05548709]
[1749884156227,2.20794222,105210.0,105200.0,0.07330091]
[1749884156485,2.20794222,105210.0,105200.0,0.0733009]
[1749884156685,2.20794222,105210.0,105200.0,0.06662071]
[1749884156891,2.20794222,105210.0,105200.0,0.04658018]
[1749884157093,2.20794222,105210.0,105200.0,0.06662073]
[1749884157737,2.20794222,105210.0,105200.0,0.07330091]
[1749884157946,2.20794222,105210.0,105200.0,0.06662073]
[1749884158168,2.20794222,105210.0,105200.0,0.07330091]
[1749884158403,2.20794222,105210.0,105200.0,0.07330092]
[1749884158631,2.20794222,105210.0,105200.0,0.07330091]
[1749884158838,2.20794222,105210.0,105200.0,0.06662073]
[1749884159051,2.20794222,105210.0,105200.0,0.05548709]
[1749884159262,2.20794222,105210.0,105200.0,0.07330091]
[1749884159481,2.20794222,105210.0,105200.0,0.06662073]
[1749884159685,2.20794222,105210.0,105200.0,0.04880691]
[1749884160043,2.20794222,105210.0,105200.0,0.064394]
[1749884160323,2.20794222,105210.0,105200.0,0.06439871]
[1749884160478,2.20794222,105210.0,105200.0,0.07332446]
[1749884161060,2.20794222,105210.0,105200.0,0.05549808]
[1749884161266,2.20794222,105210.0,105200.0,0.06663957]
[1749884161659,2.20794222,105210.0,105200.0,0.05549808]
[1749884161805,2.20794222,105210.0,105200.0,0.07332445]
[1749884162209,2.20794222,105210.0,105200.0,0.07332444]
[1749884162624,2.20794222,105210.0,105200.0,0.06663955]
[1749884162788,2.20794222,105210.0,105200.0,0.06441126]
[1749884162989,2.20794222,105210.0,105200.0,0.07332444]
[1749884163196,2.20794222,105210.0,105200.0,0.06441126]
[1749884163432,2.20794222,105210.0,105200.0,0.07332442]
[1749884163657,2.20794222,105210.0,105200.0,0.07332432]
[1749884163865,2.20794222,105210.0,105200.0,0.05772446]
[1749884164090,2.20794222,105210.0,105200.0,0.06440863]
[1749884164305,2.20794222,105210.0,105200.0,0.07332086]
[1749884164919,2.20794222,105210.0,105200.0,0.07332095]
[1749884165128,2.20794222,105210.0,105200.0,0.07332098]
[1749884165491,2.20794222,105210.0,105200.0,0.07332132]
[1749884165696,2.20794222,105210.0,105200.0,0.04658426]
[1749884165897,2.20794222,105210.0,105200.0,0.07332132]
[1749884166314,2.20794222,105210.0,105200.0,0.05549661]
[1749884166522,2.20794222,105210.0,105200.0,0.0399]
[1749884166724,2.30409144,105210.0,105200.0,0.07332167]
[1749884166932,2.30409144,105210.0,105200.0,0.05549685]
[1749884167137,2.30409144,105210.0,105200.0,0.07332192]
[1749884167346,2.30409144,105210.0,105200.0,0.05549689]
[1749884167549,2.30409144,105210.0,105200.0,0.06663754]
[1749884167764,2.30409144,105210.0,105200.0,0.04881251]
[1749884167970,2.30409144,105210.0,105200.0,0.07332178]
[1749884168390,2.30409144,105210.0,105200.0,0.07332166]
[1749884168597,2.30409144,105210.0,105200.0,0.04881244]
[1749884168812,2.30409144,105210.0,105200.0,0.07332166]
[1749884169220,2.30409144,105210.0,105200.0,0.05772523]
[1749884169437,2.30409144,105210.0,105200.0,0.0554971]
[1749884169642,2.30409144,105210.0,105200.0,0.06440965]
[1749884170061,2.30409144,105210.0,105200.0,0.07332215]
[1749884170411,2.20794222,105210.0,105200.0,0.07332215]
[1749884170839,2.20794222,105210.0,105200.0,0.06440958]
[1749884171046,2.20794222,105210.0,105200.0,0.05772514]
[1749884171258,2.20794222,105210.0,105200.0,0.07332214]
[1749884171461,2.20794222,105210.0,105200.0,0.07332215]
[1749884171698,2.30409144,105210.0,105200.0,0.07332215]
[1749884171915,2.30409144,105210.0,105200.0,0.07332214]
[1749884172348,2.30409144,105210.0,105200.0,0.06440957]
[1749884172550,2.30409144,105210.0,105200.0,0.07332215]
[1749884172759,2.30409144,105210.0,105200.0,0.055497]
[1749884172978,2.30409144,105210.0,105200.0,0.07332215]
[1749884173903,2.30409144,105210.0,105200.0,0.06440958]
[1749884174148,2.30409144,105210.0,105200.0,0.06663772]
[1749884174366,2.20794222,105210.0,105200.0,0.0733219]
[1749884174588,2.20794222,105210.0,105200.0,0.0399]
[1749884175001,2.20794222,105210.0,105200.0,0.05549686]
[1749884175244,2.20794222,105210.0,105200.0,0.05772514]
[1749884175495,2.20794222,105210.0,105200.0,0.06663783]
[1749884175717,2.20794222,105210.0,105200.0,0.06663762]
[1749884175929,2.20794222,105210.0,105200.0,0.04881254]
[1749884176115,2.20794222,105210.0,105200.0,0.07332202]
[1749884176577,2.20794222,105210.0,105200.0,0.06440948]
[1749884176788,2.20794222,105210.0,105200.0,0.07332202]
[1749884177200,2.20794222,105210.0,105200.0,0.06663762]
[1749884177401,2.20794222,105210.0,105200.0,0.05549694]
[1749884177584,2.20794222,105210.0,105200.0,0.07332202]
[1749884177841,2.20794222,105210.0,105200.0,0.04658532]
[1749884178045,2.20794222,105210.0,105200.0,0.07332601]
[1749884178252,2.20794222,105210.0,105200.0,0.04658532]
[1749884178454,2.20794222,105210.0,105200.0,0.07332608]
[1749884178664,2.20794222,105210.0,105200.0,0.07332609]
[1749884178856,2.20794222,105210.0,105200.0,0.07332607]
[1749884179042,2.20794222,105210.0,105200.0,0.05549883]
[1749884179338,2.20794222,105210.0,105200.0,0.04658521]
[1749884179551,2.20794222,105210.0,105200.0,0.0399]
[1749884179750,2.20794222,105210.0,105200.0,0.06441244]
[1749884179961,2.20794222,105210.0,105200.0,0.07332606]
[1749884180116,2.20794222,105210.0,105200.0,0.05549883]
[1749884180326,2.20794222,105210.0,105200.0,0.04881362]
[1749884180527,2.20794222,105210.0,105200.0,0.05549883]
[1749884180726,2.20794222,105210.0,105200.0,0.06664086]
[1749884180938,2.20794222,105210.0,105200.0,0.05549883]
[1749884181145,2.20794222,105210.0,105200.0,0.06441245]
[1749884181344,2.20794222,105210.0,105200.0,0.06664086]
[1749884181654,2.20794222,105210.0,105200.0,0.06441245]
[1749884181856,2.20794222,105210.0,105200.0,0.06664086]
[1749884182060,2.20794222,105210.0,105200.0,0.07332607]
[1749884182262,2.20794222,105210.0,105200.0,0.06441245]
[1749884182871,2.20794222,105210.0,105200.0,0.06440478]
[1749884183072,2.20794222,105210.0,105200.0,0.07331456]
[1749884183325,2.20794222,105210.0,105200.0,0.07331171]
[1749884183647,2.20794222,105210.0,105200.0,0.06440192]